bitfinex/quotes_ETHUSD_20241217
["timestamp","ask_amount","ask_price","bid_price","bid_amount"]
[1734451110488,0.7971,3935.2,3933.0,0.02541371]
[1734451110655,0.7971,3935.2,3932.9,0.02541371]
[1734451110855,0.7971,3935.2,3932.9,0.57541371]
[1734451111256,3.7971,3935.2,3932.5,0.57541554]
[1734451111490,3.7971,3935.2,3932.4,3.12806921]
[1734451111720,3.0,3934.6,3931.4,3.0]
[1734451112008,3.0,3934.2,3931.4,3.0]
[1734451112159,3.0,3934.0,3931.3,4.02043383]
[1734451112370,2.54226,3933.5,3930.8,4.02043383]
[1734451112562,1.3002,3933.7,3930.8,4.02043383]
[1734451112563,1.3002,3933.7,3930.9,0.87285957]
[1734451112795,0.38423,3933.6,3931.0,0.48932934]
[1734451112966,1.3002,3933.7,3931.0,0.48932934]
[1734451113166,3.0,3933.5,3931.0,0.48932934]
[1734451113412,3.0,3933.5,3931.1,0.2496]
[1734451113624,2.54227,3933.5,3931.3,0.2496]
[1734451113826,3.0,3933.6,3931.4,0.2496]
[1734451114024,0.684234,3933.5,3931.6,0.2496]
[1734451114718,3.684234,3933.5,3931.6,0.2496]
[1734451114932,0.684234,3933.5,3931.6,0.2496]
[1734451117221,3.0,3933.6,3931.6,0.2496]
[1734451117584,1.3002,3933.7,3931.6,0.2496]
[1734451117842,3.57173586,3933.0,3931.6,0.2496]
[1734451118124,3.0,3932.7,3931.6,0.2496]
[1734451119399,3.55,3932.8,3931.6,0.2496]
[1734451119584,0.43002,3932.7,3931.6,0.2496]
[1734451120016,6.29265,3933.3,3931.6,0.2496]
[1734451120287,0.88018032,3933.3,3931.6,0.2496]
[1734451121244,2.54253,3933.1,3931.6,0.2496]
[1734451121526,2.54271,3932.8,3931.6,0.2496]
[1734451121735,2.54285,3932.6,3931.6,0.2496]
[1734451121898,0.609285,3932.5,3931.6,0.2496]
[1734451122711,0.609285,3932.5,3930.6,0.2496]
[1734451122884,3.57173586,3931.3,3929.7,0.2496]
[1734451123387,2.54382,3931.1,3929.7,0.2496]
[1734451123805,0.55,3931.2,3929.7,0.2496]
[1734451124100,3.0,3930.7,3928.5,0.2496]
[1734451125107,5.54408,3930.7,3928.5,0.2496]
[1734451125437,3.0,3930.7,3928.5,0.2496]
[1734451125640,3.7502,3931.0,3928.5,0.2496]
[1734451125930,0.7502,3931.0,3928.7,0.2496]
[1734451126134,0.44167446,3930.9,3928.7,0.2496]
[1734451126334,0.12535632,3930.6,3928.7,0.2496]
[1734451126536,2.54372,3931.3,3928.4,7.15034005]
[1734451126537,6.56637147,3932.3,3929.0,3.0]
[1734451126838,0.7661,3932.1,3929.2,0.2496]
[1734451127388,2.54349,3931.6,3929.2,0.2496]
[1734451127635,3.254349,3931.5,3929.4,0.2496]
[1734451127841,0.12611845,3931.1,3929.4,0.2496]
[1734451128026,3.0,3930.9,3929.4,0.2496]
[1734451128202,3.0,3930.4,3929.4,0.2496]
[1734451128402,3.0,3930.4,3927.3,2.09905676]
[1734451128403,2.54441,3930.2,3927.8,0.12877478]
[1734451128655,0.554441,3930.1,3928.2,4.02331147]
[1734451128856,0.12611845,3931.1,3928.7,4.02331147]
[1734451129060,0.12611845,3931.1,3928.8,0.26326225]
[1734451129557,0.12611845,3931.1,3928.8,3.01366225]
[1734451129758,0.12611845,3931.1,3929.1,0.2496]
[1734451130063,7.33260147,3932.1,3929.5,0.2496]
[1734451130362,7.33260147,3932.1,3929.7,0.2496]
[1734451131160,4.78941147,3932.1,3929.7,0.2496]
[1734451131369,3.0,3931.9,3929.7,0.2496]
[1734451132065,3.0,3931.9,3929.8,0.2496]
[1734451132387,1.03326415,3931.8,3929.8,0.2496]
[1734451133173,3.0,3931.6,3929.8,0.2496]
[1734451133472,1.03326415,3931.8,3929.8,0.2496]
[1734451133684,0.7661,3933.2,3930.1,0.55]
[1734451133963,0.7661,3933.2,3930.4,3.55]
[1734451134166,0.7661,3933.2,3930.5,0.2496]
[1734451134364,0.7661,3933.2,3930.4,3.55]
[1734451134569,0.12883164,3932.7,3930.9,0.2496]
[1734451135239,0.47894115,3933.1,3930.9,0.2496]
[1734451135447,0.55,3933.0,3930.9,0.2496]
[1734451135628,2.54278,3932.7,3930.9,0.2496]
[1734451135828,3.0,3932.7,3930.9,0.2496]
[1734451136059,0.70233115,3932.6,3930.9,0.2496]
[1734451136468,3.0,3932.5,3930.9,0.2496]
[1734451136777,0.55,3932.5,3930.9,0.2496]
[1734451136984,0.70233115,3932.6,3930.9,0.2496]
[1734451137344,0.55,3933.0,3930.9,0.2496]
[1734451137764,3.55,3933.0,3930.9,0.2496]
[1734451138152,0.47894115,3933.1,3930.9,0.2496]
[1734451138760,2.54259,3933.0,3930.9,0.2496]
[1734451139560,3.0,3932.9,3930.9,0.2496]
[1734451139773,0.60215312,3932.8,3930.9,0.2496]
[1734451140100,0.47894115,3933.1,3931.1,0.2496]
[1734451140244,3.0,3933.4,3931.1,0.2496]
[1734451140647,3.7661,3933.6,3931.1,0.2496]
[1734451140849,0.7661,3934.2,3931.3,0.2496]
[1734451141168,0.7661,3934.2,3931.5,0.2496]
[1734451141366,0.7661,3934.2,3931.4,3.57542803]
[1734451141367,0.771,3934.7,3931.8,0.55]
[1734451141561,2.54166,3934.5,3932.1,0.2496]
[1734451141761,2.54175,3934.3,3932.1,0.2496]
[1734451142846,0.771,3933.9,3932.1,0.2496]
[1734451143050,3.0,3933.3,3932.1,0.2496]
[1734451143249,0.55,3933.3,3932.1,0.2496]
[1734451143495,2.54265,3932.9,3932.1,0.2496]
[1734451144215,3.0,3932.8,3932.1,0.2496]
[1734451145105,1.321,3933.1,3930.1,0.2496]
[1734451145260,3.0,3932.9,3930.1,0.2496]
[1734451145463,2.54292,3932.5,3930.1,0.2496]
[1734451145693,0.254292,3932.4,3930.3,0.2496]
[1734451146859,0.254292,3932.4,3930.4,0.55]
[1734451147060,0.254292,3932.4,3930.5,0.2496]
[1734451148214,3.0,3932.8,3930.5,0.2496]
[1734451148759,1.321,3933.1,3930.5,0.2496]
[1734451148964,3.0,3932.5,3930.5,0.2496]
[1734451149159,4.02331147,3932.9,3930.5,0.2496]
[1734451149462,3.55,3932.8,3930.5,0.2496]
[1734451149664,0.75733115,3932.7,3930.5,0.2496]
[1734451149923,3.0,3932.6,3930.5,0.2496]
[1734451150109,6.57333506,3932.6,3930.5,0.2496]
[1734451150403,2.54301,3932.4,3930.5,0.2496]
[1734451151912,2.54312,3932.2,3930.5,0.2496]
[1734451152220,6.57333506,3932.6,3930.5,0.2496]
[1734451152221,2.54338,3931.8,3930.5,0.2496]
[1734451152450,2.54355,3931.5,3930.5,0.2496]
[1734451152639,0.254338,3931.7,3930.5,0.2496]
[1734451153280,3.57333506,3931.1,3930.5,0.2496]
[1734451154295,3.0,3931.0,3930.5,0.2496]
[1734451154484,2.5434,3931.8,3930.5,0.2496]
[1734451154485,3.57333506,3932.1,3930.5,0.2496]
[1734451154684,3.57333506,3932.6,3930.5,0.2496]
[1734451155103,4.34433506,3933.1,3930.5,0.2496]
[1734451155409,2.54279,3932.7,3930.5,0.2496]
[1734451155597,2.54286,3932.6,3930.5,0.2496]
[1734451155934,2.54271,3932.8,3930.5,0.2496]
[1734451156275,4.34433506,3933.1,3930.5,0.2496]
[1734451156276,3.0,3932.5,3930.5,0.2496]
[1734451156443,2.54314,3932.2,3930.5,0.2496]
[1734451156742,3.0,3932.1,3930.5,0.2496]
[1734451157299,3.0,3932.3,3930.5,0.2496]
[1734451157527,3.55,3932.3,3930.5,0.2496]
[1734451157709,0.609299,3932.2,3930.5,0.2496]
[1734451157910,3.609299,3932.2,3930.5,0.2496]
[1734451158112,0.609299,3932.2,3930.5,0.2496]
[1734451158361,4.12333506,3932.1,3930.5,0.2496]
[1734451158563,2.54336,3931.8,3930.5,0.2496]
[1734451158866,3.0,3931.7,3930.5,0.2496]
[1734451159024,3.0,3931.9,3930.5,0.2496]
[1734451159428,0.55,3931.9,3930.5,0.2496]
[1734451159629,0.71233351,3931.8,3930.5,0.2496]
[1734451160257,4.59893074,3932.6,3930.5,0.2496]
[1734451160258,3.0,3932.4,3930.5,0.2496]
[1734451160714,3.0,3932.2,3930.5,0.2496]
[1734451161114,3.0,3932.5,3930.5,0.2496]
[1734451161351,3.0,3932.2,3930.5,0.2496]
[1734451162134,4.02559568,3932.5,3930.5,0.2496]
[1734451162428,4.57559568,3932.3,3930.5,0.2496]
[1734451162667,2.54338,3931.8,3930.5,0.2496]
[1734451162901,0.55,3931.9,3930.5,0.2496]
[1734451163205,3.0,3931.8,3930.5,0.2496]
[1734451163605,3.0,3932.0,3930.5,0.2496]
[1734451163897,1.28554953,3932.4,3930.5,0.2496]
[1734451163898,0.91164451,3931.9,3930.5,0.2496]
[1734451164099,0.55,3932.3,3930.5,0.2496]
[1734451164253,2.54317,3932.1,3930.5,0.2496]
[1734451164451,3.0,3932.2,3930.5,0.2496]
[1734451164969,0.7839,3931.8,3929.9,0.2496]
[1734451165209,3.55,3931.7,3929.9,0.2496]
[1734451165354,2.54362,3931.4,3929.9,0.2496]
[1734451166066,1.09029057,3931.6,3929.9,0.2496]
[1734451166278,4.02559568,3932.0,3930.1,0.2496]
[1734451166481,0.55,3931.9,3930.3,0.2496]
[1734451166678,3.55,3931.9,3930.3,0.2496]
[1734451167084,3.0,3932.1,3930.5,0.2496]
[1734451167285,3.0,3932.1,3929.8,3.57333506]
[1734451167286,1.28554953,3932.4,3930.6,0.02543775]
[1734451167465,1.27986668,3932.7,3930.8,3.57333506]
[1734451167812,0.254271,3932.7,3930.9,0.2496]
[1734451168713,2.54271,3932.9,3930.9,0.2496]
[1734451168919,3.0,3932.8,3930.9,0.2496]
[1734451169128,0.55,3933.0,3930.9,0.2496]
[1734451169331,1.57559568,3933.1,3930.9,0.2496]
[1734451169514,2.54266,3932.9,3931.1,0.2496]
[1734451169718,3.61139892,3933.0,3931.1,0.2496]
[1734451169897,0.61139892,3933.0,3931.1,0.2496]
[1734451170827,3.55,3932.9,3931.1,0.2496]
[1734451171024,3.61139892,3933.0,3931.1,0.2496]
[1734451171185,0.92679681,3932.9,3931.1,0.2496]
[1734451171388,3.61139892,3933.0,3931.1,0.2496]
[1734451171625,0.61139892,3933.0,3931.4,0.2496]
[1734451171829,1.02559568,3933.3,3931.4,0.2496]
[1734451172126,3.0,3932.9,3931.4,0.2496]
[1734451172926,4.02559568,3933.2,3931.4,0.2496]
[1734451173228,3.0,3933.1,3931.4,0.2496]
[1734451173385,0.95680657,3933.0,3931.4,0.2496]
[1734451173912,3.0,3932.9,3931.4,0.2496]
[1734451174094,1.02559568,3933.2,3931.4,0.2496]
[1734451174298,1.02559568,3933.3,3931.4,0.2496]
[1734451174495,2.1208709,3933.3,3931.4,0.2496]
[1734451174728,2.1208709,3933.2,3931.4,0.2496]
[1734451174883,0.66592644,3933.1,3931.6,0.2496]
[1734451175079,1.02559568,3933.3,3931.6,0.2496]
[1734451175328,0.55,3933.4,3931.6,0.2496]
[1734451175484,2.54239,3933.3,3931.6,0.2496]
[1734451175687,2.67130934,3933.2,3931.6,0.2496]
[1734451175881,0.55,3932.9,3931.6,0.2496]
[1734451176087,2.54279,3932.7,3931.6,0.2496]
[1734451176312,0.26713652,3932.8,3931.6,0.2496]
[1734451178984,1.02559568,3933.1,3931.6,0.2496]
[1734451179189,4.02559568,3933.3,3931.6,0.2496]
[1734451179432,1.02559568,3933.3,3931.6,0.2496]
[1734451179587,4.02559568,3933.4,3931.6,0.2496]
[1734451179792,2.54228,3933.5,3931.6,0.2496]
[1734451179793,0.81062692,3933.3,3932.0,0.2496]
[1734451179990,1.02559568,3933.8,3932.0,0.2496]
[1734451180195,1.02559568,3933.9,3932.0,3.0]
[1734451180390,1.09610886,3933.9,3932.1,0.2496]
[1734451180802,1.02559568,3934.0,3932.4,3.57333506]
[1734451181021,1.02559568,3934.5,3932.5,0.2496]
[1734451181205,1.02559568,3934.5,3932.4,3.57333506]
[1734451181206,0.51055492,3934.4,3932.7,0.2496]
[1734451181410,1.02559568,3934.7,3932.9,3.57333506]
[1734451181737,1.02559568,3935.1,3933.1,0.2496]
[1734451181950,1.02559568,3935.2,3933.1,0.2496]
[1734451182094,2.54111,3935.3,3933.1,0.2496]
[1734451182095,1.02559568,3935.3,3933.1,0.2496]
[1734451182293,1.02559568,3935.4,3933.2,0.87731498]
[1734451182643,0.51049692,3935.3,3933.4,0.2496]
[1734451183139,2.54098,3935.5,3933.4,0.2496]
[1734451183306,1.02559568,3935.7,3933.4,0.2496]
[1734451183503,3.0,3935.4,3933.4,0.2496]
[1734451183722,0.55,3935.5,3933.4,0.2496]
[1734451184006,3.09091,3935.6,3933.4,0.2496]
[1734451184207,2.54077,3935.9,3933.6,0.2496]
[1734451184515,2.54058,3936.1,3934.1,0.2496]
[1734451185018,2.54073,3935.9,3934.1,0.2496]
[1734451185608,3.0,3935.8,3934.1,0.2496]
[1734451185847,5.54082,3935.8,3934.1,0.2496]
[1734451186052,5.54082,3935.8,3934.3,0.2496]
[1734451186053,3.094942,3935.7,3934.3,0.2496]
[1734451186220,0.554082,3935.7,3934.3,0.2496]
[1734451186433,3.09091,3935.6,3934.3,0.2496]
[1734451186613,3.0,3935.5,3934.3,0.2496]
[1734451186956,0.6644992,3935.4,3934.3,0.2496]
[1734451187711,3.554082,3935.7,3934.3,0.2496]
[1734451187915,3.0,3935.5,3934.3,0.2496]
[1734451188767,0.554082,3935.7,3934.3,0.2496]
[1734451189565,0.554082,3935.7,3933.3,0.51549894]
[1734451189566,2.54026,3936.7,3934.6,0.2496]
[1734451189873,2.54035,3936.5,3934.6,0.2496]
[1734451190664,3.35483,3937.0,3934.6,0.2496]
[1734451190963,2.54015,3936.8,3934.6,0.2496]
[1734451191147,2.54015,3936.8,3934.8,0.2496]
[1734451191368,0.8148,3937.0,3934.8,0.2496]
[1734451191369,2.54023,3936.7,3934.8,0.2496]
[1734451191720,2.54027,3936.6,3934.8,0.2496]
[1734451192155,0.8148,3937.0,3934.8,0.2496]
[1734451192366,2.54007,3936.9,3934.8,0.2496]
[1734451192675,3.0,3936.7,3935.0,0.2496]
[1734451193087,3.0,3936.6,3935.0,0.2496]
[1734451193238,3.0,3936.8,3935.0,0.2496]
[1734451193438,3.0,3936.7,3935.0,0.2496]
[1734451193682,3.0,3936.1,3935.0,0.2496]
[1734451193841,3.55,3936.4,3935.0,0.2496]
[1734451193842,3.55,3936.2,3935.0,0.2496]
[1734451194256,3.0,3936.2,3935.0,0.2496]
[1734451194638,5.54053,3936.2,3935.0,0.2496]
[1734451194870,2.54097,3935.6,3935.0,0.2496]
[1734451195081,0.254097,3935.6,3935.0,0.2496]
[1734451195243,3.55,3936.0,3935.0,0.2496]
[1734451195442,2.54086,3935.7,3935.0,0.2496]
[1734451195639,2.54093,3935.6,3935.0,0.2496]
[1734451196436,3.55,3936.0,3935.0,0.2496]
[1734451196641,0.55,3936.0,3935.0,0.2496]
[1734451197040,3.0,3936.1,3935.0,0.2496]
[1734451197245,0.55,3936.2,3935.0,0.2496]
[1734451197246,2.54077,3935.9,3935.0,0.2496]
[1734451197872,0.655,3936.0,3935.0,0.2496]
[1734451198086,2.54066,3936.0,3935.0,0.2496]
[1734451198241,2.54051,3936.3,3935.0,0.2496]
[1734451198687,2.54061,3936.1,3935.0,0.2496]
[1734451198845,3.0,3935.9,3935.0,0.2496]
[1734451199181,2.54065,3936.0,3935.0,0.2496]
[1734451199381,3.0,3936.3,3935.0,0.2496]
[1734451199382,2.54047,3936.3,3935.0,0.2496]
[1734451199582,3.0,3936.2,3935.0,0.2496]
[1734451199937,2.54072,3935.9,3935.0,0.2496]
[1734451200213,0.28912699,3936.3,3935.0,0.2496]
[1734451200744,0.28912699,3936.3,3935.0,0.23352]
[1734451201032,0.55,3936.2,3935.0,0.23352]
[1734451201179,0.55,3936.2,3933.6,3.0]
[1734451201502,2.54157,3934.6,3932.3,0.0254158]
[1734451201652,2.5416,3934.6,3932.3,0.0254158]
[1734451201858,3.0,3934.9,3932.3,0.0254158]
[1734451202070,3.0,3934.9,3932.3,0.5754158]
[1734451202469,2.54155,3934.7,3932.3,0.70241325]
[1734451202902,2.54155,3934.7,3932.3,3.70241325]
[1734451203097,2.54155,3934.7,3932.5,0.55]
[1734451203259,2.54155,3934.7,3932.6,0.02541582]
[1734451203659,3.0,3934.9,3932.6,0.02541582]
[1734451203660,2.54155,3934.6,3932.6,0.02541582]
[1734451203927,2.54143,3934.8,3932.6,0.02541582]
[1734451204073,2.54152,3934.7,3932.6,0.02541582]
[1734451204281,3.0,3935.4,3932.8,0.55]
[1734451204461,2.54123,3935.1,3933.3,3.0]
[1734451205004,2.54131,3935.0,3933.3,3.0]
[1734451205378,2.54129,3935.0,3933.4,0.2335]
[1734451206411,3.57333506,3935.5,3933.4,0.2335]
[1734451206610,3.86319646,3935.7,3932.8,0.2335]
[1734451206611,3.0,3934.9,3932.8,0.2335]
[1734451206902,3.0,3934.9,3933.6,0.2335]
[1734451207104,3.0,3934.9,3933.7,0.49125931]
[1734451207407,3.0,3934.7,3933.8,0.49125931]
[1734451207747,2.54175,3934.3,3933.9,0.18894589]
[1734451207915,2.54201,3933.9,3933.6,0.2335]
[1734451208077,2.54207,3933.8,3933.7,0.18909305]
[1734451208278,5.54207,3933.8,3933.2,0.2335]
[1734451208464,2.54227,3933.5,3933.3,0.18922893]
[1734451208659,3.55,3933.9,3933.2,0.2335]
[1734451208859,2.54226,3933.6,3933.2,0.2335]
[1734451209109,2.54231,3933.5,3931.8,0.2335]
[1734451209268,2.54231,3933.5,3932.0,0.2335]
[1734451209580,3.0,3933.3,3932.1,0.57156362]
[1734451209782,2.54277,3932.8,3932.0,0.2335]
[1734451210087,2.797077,3932.7,3932.0,0.2335]
[1734451210296,2.54303,3932.4,3932.0,0.2335]
[1734451210603,2.54316,3932.2,3930.7,0.2335]
[1734451210907,2.54314,3932.2,3930.7,0.2335]
[1734451211105,2.54325,3932.0,3930.7,0.2335]
[1734451211410,0.254325,3931.9,3930.7,0.2335]
[1734451212124,0.55,3932.3,3930.7,0.2335]
[1734451212282,0.254277,3932.7,3930.7,0.2335]
[1734451212638,0.8113,3933.0,3930.9,3.57333506]
[1734451212936,0.8113,3933.4,3931.1,0.2335]
[1734451213082,2.54252,3933.2,3931.1,0.2335]
[1734451213281,0.8113,3933.4,3931.1,0.2335]
[1734451213525,3.57333506,3932.5,3931.1,0.2335]
[1734451213737,1.16863351,3932.4,3931.1,0.2335]
[1734451213914,3.0,3931.9,3931.1,0.2335]
[1734451214286,3.0,3931.9,3929.8,0.2335]
[1734451214829,3.57333506,3931.5,3929.8,0.2335]
[1734451214992,6.11689506,3931.5,3929.8,0.2335]
[1734451215199,0.61168951,3931.4,3929.8,0.2335]
[1734451215431,2.54379,3931.2,3929.8,0.2335]
[1734451215597,3.0,3930.9,3929.8,0.2335]
[1734451215990,0.61168951,3931.4,3929.8,0.2335]
[1734451216219,3.57333506,3931.1,3929.8,0.2335]
[1734451216428,0.35733351,3931.0,3929.8,0.2335]
[1734451217038,3.35733351,3931.0,3929.8,0.2335]
[1734451217620,0.35733351,3931.0,3929.8,0.2335]
[1734451217839,3.55,3931.3,3929.8,0.2335]
[1734451218328,0.61168951,3931.4,3929.8,0.2335]
[1734451218531,4.02374946,3931.6,3929.8,0.2335]
[1734451218691,5.54356,3931.5,3929.8,0.2335]
[1734451218887,0.8113,3931.4,3929.8,0.2335]
[1734451219307,0.8113,3932.1,3929.8,0.2335]
[1734451219707,4.83504946,3932.1,3929.8,0.2335]
[1734451219905,0.48350495,3932.0,3930.0,0.2335]
[1734451220951,0.35733351,3932.4,3930.3,0.55]
[1734451221255,4.02374946,3932.6,3930.4,0.2335]
[1734451221455,2.5433,3931.9,3930.4,0.2335]
[1734451221655,2.54355,3931.5,3930.4,0.2335]
[1734451221824,0.8113,3931.0,3930.0,0.2335]
[1734451222355,3.8113,3931.0,3930.0,0.2335]
[1734451222510,0.78350495,3930.9,3930.0,0.2335]
[1734451222915,3.0,3930.8,3930.0,0.2335]
[1734451223158,0.78350495,3930.9,3930.0,0.2335]
[1734451223311,3.0,3931.5,3930.0,0.2335]
[1734451223518,5.54356,3931.5,3930.0,0.2335]
[1734451223751,3.0,3931.5,3930.0,0.2335]
[1734451224254,3.0,3931.0,3930.0,0.2335]
[1734451224454,3.0,3931.3,3930.0,0.2335]
[1734451224653,3.3,3931.2,3930.0,0.2335]
[1734451225150,0.3,3931.2,3930.0,0.2335]
[1734451225663,4.02374946,3930.5,3928.2,0.2335]
[1734451225815,2.54433,3930.3,3928.2,0.2335]
[1734451226009,3.0,3929.9,3928.2,0.2335]
[1734451226224,0.78350495,3929.8,3928.2,0.2335]
[1734451226640,5.54472,3929.7,3928.2,0.2335]
[1734451226857,3.0,3929.5,3928.2,0.2335]
[1734451227070,0.78350495,3929.8,3928.2,0.2335]
[1734451227218,3.0,3929.4,3928.2,0.2335]
[1734451227412,0.554487,3929.3,3928.2,0.2335]
[1734451227630,3.0,3929.6,3928.2,0.2335]
[1734451227926,3.35628,3929.3,3928.2,0.2335]
[1734451228129,0.8113,3929.3,3928.2,0.2335]
[1734451228349,0.8113,3929.7,3928.2,0.2335]
[1734451228712,3.0,3929.6,3928.2,0.2335]
[1734451229060,0.7139525,3929.5,3928.2,0.2335]
[1734451229430,0.78350495,3929.8,3928.2,0.2335]
[1734451229762,4.02374946,3930.0,3928.2,0.2335]
[1734451229970,4.02374946,3929.5,3928.2,0.2335]
[1734451230151,3.35621,3929.4,3928.2,0.2335]
[1734451230468,0.8113,3929.4,3928.2,0.2335]
[1734451230982,3.8113,3929.4,3928.2,0.2335]
[1734451231261,3.0,3929.9,3928.4,0.2335]
[1734451231426,0.8113,3930.2,3928.6,0.2335]
[1734451231646,0.8113,3930.2,3928.7,0.55]
[1734451231816,3.3557,3930.2,3928.7,0.55]
[1734451232016,3.0,3930.1,3928.7,0.55]
[1734451232218,0.63557,3930.0,3928.7,0.55]
[1734451232416,6.56799946,3930.5,3928.9,0.55]
[1734451232417,4.02374946,3930.5,3928.9,0.55]
[1734451232715,4.02374946,3930.5,3929.1,0.55]
[1734451232915,6.56797946,3930.5,3929.1,0.55]
[1734451233146,2.54428,3930.4,3929.1,0.55]
[1734451233348,2.54435,3930.3,3929.1,0.55]
[1734451233662,0.65680995,3930.2,3929.1,0.55]
[1734451234166,3.65680995,3930.2,3929.1,0.55]
[1734451234558,4.02374946,3930.0,3928.5,0.2335]
[1734451234718,0.8104,3930.1,3928.6,0.55]
[1734451234919,0.65680995,3930.2,3928.8,0.55]
[1734451235117,0.365681,3930.1,3928.8,0.55]
[1734451235764,3.0,3929.9,3928.7,0.2335]
[1734451236119,3.0,3929.7,3928.7,0.2335]
[1734451236324,2.54481,3929.6,3928.7,0.2335]
[1734451236518,3.0,3929.7,3928.7,0.2335]
[1734451236754,0.3,3929.6,3928.7,0.2335]
[1734451237462,2.54467,3929.8,3928.7,0.2335]
[1734451237682,2.54498,3929.3,3928.7,0.2335]
[1734451237886,2.54504,3929.2,3928.2,0.2335]
[1734451238092,2.54511,3929.1,3928.2,0.2335]
[1734451238292,2.54511,3929.1,3924.8,2.7014597]
[1734451238293,3.58040901,3928.7,3926.6,0.2335]
[1734451238595,0.3580409,3928.6,3926.6,0.2335]
[1734451238741,3.0,3929.7,3926.9,0.2335]
[1734451238944,3.0,3929.7,3927.1,0.2335]
[1734451239287,3.0,3929.7,3927.3,3.58040901]
[1734451239443,3.0,3929.7,3927.4,0.2335]
[1734451239784,3.0,3929.7,3927.5,0.2335]
[1734451239939,0.6580409,3929.6,3927.7,0.2335]
[1734451241449,0.365681,3930.1,3929.0,0.55]
[1734451241660,2.54477,3929.7,3928.9,0.2335]
[1734451242004,3.57840901,3929.3,3927.2,3.0]
[1734451242208,5.54504,3929.2,3927.1,0.2335]
[1734451242412,5.54538,3928.7,3927.1,0.2335]
[1734451242573,3.0,3928.7,3927.1,0.2335]
[1734451242953,3.58040901,3928.8,3927.1,0.2335]
[1734451243998,6.12570901,3928.8,3927.1,0.2335]
[1734451244715,2.54544,3928.6,3927.1,0.2335]
[1734451244923,0.6125849,3928.5,3927.1,0.2335]
[1734451245067,0.6125849,3928.5,3927.2,0.55]
[1734451245716,3.58040901,3928.4,3927.2,0.55]
[1734451246082,3.58040901,3928.4,3927.1,0.2335]
[1734451246083,3.58040901,3927.5,3926.0,0.2335]
[1734451246599,3.0,3928.0,3926.0,0.2335]
[1734451246773,3.9580409,3928.0,3926.0,0.2335]
[1734451246976,3.58040901,3927.6,3926.0,0.2335]
[1734451247404,3.9580409,3928.0,3926.0,0.2335]
[1734451247405,3.58040901,3927.1,3926.0,0.2335]
[1734451248202,3.58040901,3926.6,3926.0,0.2335]
[1734451249472,3.58040901,3926.6,3926.1,0.55]
[1734451249884,3.58040901,3927.1,3926.1,0.55]
[1734451250670,3.58040901,3927.1,3926.0,0.2335]
[1734451250671,2.54647,3927.0,3926.0,0.2335]
[1734451250914,4.19307191,3927.1,3926.0,0.2335]
[1734451251508,3.58040901,3926.6,3926.0,0.2335]
[1734451251817,3.58040901,3926.6,3923.5,3.58040901]
[1734451251818,0.7951,3926.5,3925.0,0.2335]
[1734451251973,3.58040901,3926.1,3925.0,0.2335]
[1734451252420,4.19313791,3926.1,3925.0,0.2335]
[1734451252573,3.58040901,3926.1,3925.0,0.2335]
[1734451252775,3.0,3927.0,3925.0,0.2335]
[1734451253520,2.5468,3926.5,3925.0,0.2335]
[1734451253683,3.58040901,3926.6,3925.1,0.55]
[1734451253684,2.54693,3926.3,3925.1,0.55]
[1734451253884,3.58040901,3926.6,3925.1,0.55]
[1734451254115,3.58040901,3926.1,3925.0,0.2335]
[1734451254271,2.54716,3926.0,3925.0,0.2335]
[1734451254476,2.54718,3925.9,3925.0,0.2335]
[1734451254668,2.54727,3925.8,3925.0,0.2335]
[1734451254873,3.58040901,3925.6,3925.0,0.2335]
[1734451255130,3.3580409,3925.5,3923.0,0.2335]
[1734451255418,3.58040901,3925.1,3923.0,0.2335]
[1734451257430,6.12812901,3925.1,3923.0,0.2335]
[1734451257622,0.7951,3925.0,3923.0,0.2335]
[1734451257929,3.58040901,3924.6,3923.0,0.2335]
[1734451258135,0.3580409,3924.5,3923.0,0.2335]
[1734451259074,0.3580409,3924.5,3923.1,0.55]
[1734451259807,0.3580409,3924.5,3923.2,0.2335]
[1734451260012,3.0,3925.0,3923.4,0.2335]
[1734451260327,2.54707,3926.1,3923.4,0.2335]
[1734451260328,3.58040901,3926.1,3923.8,0.2335]
[1734451260629,3.58040901,3926.1,3924.2,0.2335]
[1734451260920,3.58040901,3926.1,3924.3,0.55]
[1734451261127,0.7951,3926.9,3924.6,0.55]
[1734451261291,0.26488683,3928.0,3924.8,0.55]
[1734451261292,0.7951,3927.5,3924.8,0.55]
[1734451261478,0.7951,3927.5,3924.7,3.01662698]
[1734451261479,3.58040901,3927.8,3925.2,0.2335]
[1734451261677,3.58040901,3927.8,3925.1,0.55]
[1734451261678,3.58040901,3927.8,3925.5,0.2335]
[1734451261879,4.35590901,3928.3,3925.9,0.2335]
[1734451262121,4.35590901,3928.3,3925.6,0.55]
[1734451262122,0.12687079,3927.5,3926.1,0.2335]
[1734451262440,0.12687079,3927.5,3926.2,0.7835]
[1734451262819,0.12687079,3927.5,3926.2,0.2335]
[1734451263214,0.7755,3928.7,3925.2,0.02546817]
[1734451263215,3.58040901,3928.3,3926.3,0.55]
[1734451263495,3.58040901,3928.3,3926.7,0.55]
[1734451263496,0.12937792,3927.7,3926.7,0.55]
[1734451263692,0.12937792,3927.7,3926.8,0.2335]
[1734451266709,4.01585219,3927.7,3926.8,0.2335]
[1734451266912,4.01585219,3927.7,3925.0,0.2335]
[1734451266913,3.88647427,3927.2,3925.0,0.2335]
[1734451267144,3.7755,3927.6,3925.2,0.2335]
[1734451267283,0.77913522,3927.5,3925.4,0.2335]